lending/lending_fUSD_20250130
["ID","MTS","AMOUNT","RATE_DAILY","PERIOD"]
[350988210,1738267863012,-500.0,0.00019452,3]
[350988211,1738267863023,-2018.27,0.00019452,3]
[350988212,1738267863034,-513.01724533,0.00019452,3]
[350988213,1738267863046,-500.0,0.00019452,3]
[350988214,1738267863057,-944.3,0.00019452,3]
[350988215,1738267863067,-506.88993707,0.00019452,3]
[350988216,1738267863079,-500.0,0.00019452,3]
[350988217,1738267863091,-1174.97,0.00019452,3]
[350988218,1738267863102,-719.14,0.00019452,3]
[350988219,1738267863114,-668.81,0.00019452,3]
[350988220,1738267863129,-500.0,0.00019452,3]
[350988221,1738267863140,-1883.96,0.00019452,3]
[350988222,1738267863152,-500.0,0.00019452,3]
[350988223,1738267863163,-540.73666291,0.00019452,3]
[350988224,1738267863175,-500.0,0.00019452,3]
[350988225,1738267863186,-522.15,0.00019452,3]
[350988226,1738267863197,-500.0,0.00019452,3]
[350988227,1738267863207,-1192.28,0.00019452,3]
[350988228,1738267863219,-500.0,0.00019452,3]
[350988229,1738267863230,-603.83,0.00019452,3]
[350988230,1738267863243,-718.24,0.00019452,3]
[350988231,1738267863254,-500.0,0.00019452,3]
[350988232,1738267863265,-1218.05,0.00019452,3]
[350988233,1738267863277,-500.0,0.00019452,3]
[350988234,1738267863288,-500.0,0.00019452,3]
[350988235,1738267863298,-1717.85,0.00019452,3]
[350988236,1738267863309,-1116.72,0.00019452,3]
[350988237,1738267863321,-500.0,0.00019452,3]
[350988238,1738267863332,-1546.18,0.00019452,3]
[350988239,1738267863343,-254.82632,0.00019452,2]
[350988240,1738267863355,-500.0,0.00019452,3]
[350988241,1738267863378,-254.82632,0.00019452,2]
[350988242,1738267863391,-738.41,0.00019452,3]
[350988243,1738267863402,-500.0,0.00019452,3]
[350988244,1738267863413,-254.82632,0.00019452,2]
[350988245,1738267863425,-254.82632,0.00019452,2]
[350988246,1738267863436,-1087.32,0.00019452,3]
[350988247,1738267863447,-550.87,0.00019452,3]
[350988248,1738267863460,-375.05949018,0.00019452,3]
[350988249,1738267864262,-124.94050982,0.00019452,3]
[350988250,1738267864272,-390.64,0.00019452,3]
[350988251,1738267864283,-1258.35,0.00019452,3]
[350988252,1738267864293,-500.0,0.00019452,3]
[350988253,1738267864303,-523.71,0.00019452,3]
[350988254,1738267864313,-1090.66,0.00019452,3]
[350988255,1738267864324,-500.0,0.00019452,3]
[350988256,1738267864335,-500.0,0.00019452,3]
[350988257,1738267864345,-500.0,0.00019452,3]
[350988258,1738267864355,-1158.18,0.00019452,3]
[350988259,1738267864365,-349.51949018,0.00019452,3]
[350988260,1738267864439,-150.48050982,0.00019452,3]
[350988261,1738267864450,-500.0,0.00019452,3]
[350988262,1738267864460,-273.12299318,0.00019452,3]
[350988263,1738267864470,-500.0,0.00019452,3]
[350988264,1738267864480,-833.86,0.00019452,3]
[350988265,1738267864490,-977.44,0.00019452,3]
[350988266,1738267864500,-566.83,0.00019452,3]
[350988267,1738267864510,-1269.51,0.00019452,3]
[350988268,1738267864520,-1299.97,0.00019452,3]
[350988269,1738267864534,-551.21,0.00019452,3]
[350988270,1738267864549,-261.8,0.00019452,3]
[350988271,1738267864560,-151.82982622,0.00019452,3]
[350988272,1738267864569,-500.0,0.00019452,3]
[350988273,1738267864579,-500.0,0.00019452,3]
[350988274,1738267864590,-151.0,0.00019452,2]
[350988275,1738267864601,-151.0,0.00019452,2]
[350988276,1738267864611,-3103.91,0.00019452,3]
[350988277,1738267864621,-1983.54,0.00019452,3]
[350988278,1738267864631,-412.91074392,0.00019452,3]
[350988279,1738267864641,-500.0,0.00019452,3]
[350988280,1738267864651,-512.3303313,0.00019452,3]
[350988281,1738267864662,-500.0,0.00019452,3]
[350988282,1738267864673,-564.74,0.00019452,3]
[350988283,1738267864683,-1203.76,0.00019452,3]
[350988284,1738267864693,-1585.17,0.00019452,3]
[350988285,1738267864703,-1054.61,0.00019452,3]
[350988286,1738267864712,-500.0,0.00019452,3]
[350988287,1738267864722,-500.0,0.00019452,3]
[350988288,1738267864731,-156.395058,0.00019452,2]
[350988289,1738267864744,-156.395058,0.00019452,2]
[350988290,1738267864753,-500.0,0.00019452,3]
[350988291,1738267864763,-500.0,0.00019452,3]
[350988292,1738267864772,-156.395058,0.00019452,2]
[350988293,1738267864783,-156.395058,0.00019452,2]
[350988294,1738267864792,-500.0,0.00019452,3]
[350988295,1738267864802,-1501.75,0.00019452,3]
[350988296,1738267864812,-2212.2,0.00019452,3]
[350988297,1738267864823,-500.0,0.00019452,3]
[350988298,1738267864834,-500.0,0.00019452,3]
[350988299,1738267864843,-1718.72,0.00019452,3]
[350988300,1738267864853,-500.0,0.00019452,3]
[350988301,1738267864863,-529.21,0.00019452,3]
[350988302,1738267864874,-500.0,0.00019452,3]
[350988303,1738267864883,-1286.81,0.00019452,3]
[350988304,1738267864894,-500.0,0.00019452,3]
[350988305,1738267864904,-587.1611623,0.00019452,3]
[350988306,1738267864915,-500.0,0.00019452,3]
[350988307,1738267864925,-884.04,0.00019452,3]
[350988308,1738267864935,-500.0,0.00019452,3]
[350988309,1738267864945,-3338.71,0.00019452,3]
[350988310,1738267864956,-500.0,0.00019452,3]
[350988311,1738267864966,-500.0,0.00019452,3]
[350988312,1738267864976,-500.0,0.00019452,3]
[350988313,1738267864986,-1954.65,0.00019452,3]
[350988314,1738267864996,-2036.78,0.00019452,3]
[350988315,1738267865007,-500.0,0.00019452,3]
[350988316,1738267865016,-500.0,0.00019452,3]
[350988317,1738267865028,-500.0,0.00019452,3]
[350988318,1738267865038,-500.0,0.00019452,3]
[350988319,1738267865047,-500.0,0.00019452,3]
[350988320,1738267865057,-500.0,0.00019452,3]
[350988321,1738267865067,-500.0,0.00019452,3]
[350988322,1738267865078,-674.03,0.00019452,3]
[350988323,1738267865087,-500.0,0.00019452,3]
[350988324,1738267865097,-535.93,0.00019452,3]
[350988325,1738267865107,-1757.65,0.00019452,3]
[350988326,1738267865117,-852.95,0.00019452,3]
[350988327,1738267865126,-1509.18,0.00019452,3]
[350988328,1738267865137,-500.0,0.00019452,3]
[350988329,1738267865147,-1321.13,0.00019452,3]
[350988330,1738267865157,-500.0,0.00019452,3]
[350988331,1738267865167,-500.0,0.00019452,3]
[350988332,1738267865177,-500.0,0.00019452,3]
[350988333,1738267865187,-500.0,0.00019452,3]
[350988334,1738267865197,-1611.81,0.00019452,3]
[350988335,1738267865207,-651.46,0.00019452,3]
[350988336,1738267865217,-500.0,0.00019452,3]
[350988337,1738267865227,-500.0,0.00019452,3]
[350988338,1738267865238,-500.0,0.00019452,3]
[350988339,1738267865248,-500.0,0.00019452,3]
[350988340,1738267865259,-8517.42,0.00019452,3]
[350988341,1738267865269,-500.0,0.00019452,3]
[350988342,1738267865279,-2034.5,0.00019452,3]
[350988343,1738267865289,-500.0,0.00019452,3]
[350988344,1738267865299,-151.0,0.00019452,2]
[350988345,1738267865310,-151.0,0.00019452,2]
[350988346,1738267865320,-1117.16,0.00019452,3]
[350988347,1738267865331,-505.03440258,0.00019452,3]
[350988348,1738267865341,-658.06,0.00019452,3]
[350988349,1738267865351,-848.85,0.00019452,3]
[350988350,1738267865362,-502.05308091,0.00019452,2]
[350988351,1738267865372,-500.0,0.00019452,3]
[350988352,1738267865381,-1525.79,0.00019452,3]
[350988353,1738267865391,-500.0,0.00019452,3]
[350988354,1738267865401,-452.70286861,0.00019452,3]
[350988355,1738267865411,-2390.12,0.00019452,3]
[350988356,1738267865421,-500.0,0.00019452,3]
[350988357,1738267865432,-706.41,0.00019452,3]
[350988358,1738267865443,-1112.78,0.00019452,3]
[350988359,1738267865453,-500.0,0.00019452,3]
[350988360,1738267865464,-630.28,0.00019452,3]
[350988361,1738267865473,-500.0,0.00019452,3]
[350988362,1738267865483,-912.99,0.00019452,3]
[350988363,1738267865494,-1365.08,0.00019452,3]
[350988364,1738267865505,-500.0,0.00019452,3]
[350988365,1738267865515,-1527.94,0.00019452,3]
[350988366,1738267865525,-512.05384916,0.00019452,3]
[350988367,1738267865541,-88.12615084,0.00019452,3]
[350988368,1738267865552,-262.9079674,0.00019452,3]
[350988369,1738267865565,-1665.522,0.00019452,3]
[350988370,1738267865577,-210.3900326,0.00019452,3]
[350988371,1738267865589,-500.0,0.00019452,3]
[350988372,1738267865599,-3179.53,0.00019452,3]
[350988373,1738267865609,-1585.82,0.00019452,3]
[350988374,1738267865619,-3171.58,0.00019452,3]
[350988375,1738267865630,-500.0,0.00019452,3]
[350988376,1738267865640,-500.0,0.00019452,3]
[350988377,1738267865650,-500.0,0.00019452,3]
[350988378,1738267865660,-1988.12,0.00019452,3]
[350988379,1738267865670,-1003.68,0.00019452,3]
[350988380,1738267865679,-253.32163418,0.00019452,3]
[350988381,1738267865724,-246.67836582,0.00019452,3]
[350988382,1738267865735,-500.0,0.00019452,3]
[350988383,1738267865749,-420.5192827,0.00019452,3]
[350988384,1738267865761,-1405.0107173,0.00019452,3]
[350988385,1738267865770,-1241.69,0.00019452,3]
[350988386,1738267865779,-1319.69,0.00019452,3]
[350988387,1738267865791,-500.0,0.00019452,3]
[350988388,1738267865800,-2288.32,0.00019452,3]
[350988389,1738267865810,-150.74181854,0.00019452,2]
[350988390,1738267865824,-0.25818146,0.00019452,2]
[350988391,1738267865835,-250.60217515,0.00019452,3]
[350988392,1738267865847,-249.39782485,0.00019452,3]
[350988393,1738267865857,-151.0,0.00019452,2]
[350988394,1738267865868,-130.03117515,0.00019452,3]
[350988395,1738267865880,-1686.2,0.00019452,3]
[350988396,1738267865892,-635.03,0.00019452,3]
[350988397,1738267865905,-354.85882485,0.00019452,3]
[350988398,1738267865915,-134.22858153,0.00019452,3]
[350988399,1738267865928,-262.93,0.00019452,3]
[350988400,1738267865943,-102.84141847,0.00019452,3]
[350988401,1738267865953,-2521.69,0.00019452,3]
[350988402,1738267865963,-500.0,0.00019452,3]
[350988403,1738267865973,-500.0,0.00019452,3]
[350988404,1738267865983,-475.30858153,0.00019452,3]
[350988405,1738267865995,-24.69141847,0.00019452,3]
[350988406,1738267866005,-500.0,0.00019452,3]
[350988407,1738267866015,-500.0,0.00019452,3]
[350988408,1738267866025,-2192.24,0.00019452,3]
[350988409,1738267866035,-1705.9,0.00019452,3]
[350988410,1738267866044,-1168.41,0.00019452,3]
[350988411,1738267866054,-500.0,0.00019452,3]
[350988412,1738267866064,-151.0,0.00019452,2]
[350988413,1738267866074,-2651.96,0.00019452,3]
[350988414,1738267866084,-151.0,0.00019452,2]
[350988415,1738267866094,-500.0,0.00019452,3]
[350988416,1738267866103,-500.0,0.00019452,3]
[350988417,1738267866113,-848.52,0.00019452,3]
[350988418,1738267866122,-457.19062374,0.00019452,3]
[350988419,1738267866135,-532.14937626,0.00019452,3]
[350988420,1738267866145,-242.54920814,0.00019452,3]
[350988421,1738267866158,-257.45079186,0.00019452,3]
[350988422,1738267866168,-289.73294597,0.00019452,3]
[350988423,1738267866178,-500.0,0.00019452,3]
[350988424,1738267866188,-1840.59,0.00019452,3]
[350988425,1738267866198,-1397.33,0.00019452,3]
[350988426,1738267866208,-2507.15,0.00019452,3]
[350988427,1738267866218,-500.0,0.00019452,3]
[350988428,1738267866227,-500.0,0.00019452,3]
[350988429,1738267866237,-2885.37,0.00019452,3]
[350988430,1738267866246,-568.3,0.00019452,3]
[350988431,1738267866257,-500.0,0.00019452,3]
[350988432,1738267866266,-115.73445324,0.00019452,3]
[350988433,1738267866278,-560.89799319,0.00019452,3]
[350988434,1738267866289,-617.74561553,0.00019452,3]
[350988435,1738267866389,-1057.93193804,0.00019452,3]
[350988436,1738267866399,-4139.65,0.00019452,3]
[350988437,1738267866409,-18.21054147,0.00019452,3]
[350988438,1738267866421,-481.78945853,0.00019452,3]
[350988439,1738267866431,-1637.38,0.00019452,3]
[350988440,1738267866441,-500.0,0.00019452,3]
[350988441,1738267866451,-1257.37,0.00019452,3]
[350988442,1738267866460,-500.0,0.00019452,3]
[350988443,1738267866470,-1344.67,0.00019452,3]
[350988444,1738267866480,-1800.09,0.00019452,3]
[350988445,1738267866490,-177.14944358,0.00019452,3]
[350988446,1738267866500,-500.0,0.00019452,3]
[350988447,1738267866511,-1213.96,0.00019452,3]
[350988448,1738267866521,-940.51,0.00019452,3]
[350988449,1738267866530,-500.0,0.00019452,3]
[350988450,1738267866540,-500.0,0.00019452,3]
[350988451,1738267866550,-500.0,0.00019452,3]
[350988452,1738267866560,-1122.01,0.00019452,3]
[350988453,1738267866569,-228.166182,0.00019452,2]
[350988454,1738267866579,-905.63,0.00019452,3]
[350988455,1738267866589,-653.69,0.00019452,3]
[350988456,1738267866599,-151.0,0.00019452,2]
[350988457,1738267866608,-151.0,0.00019452,2]
[350988458,1738267866618,-500.0,0.00019452,3]
[350988459,1738267866628,-500.0,0.00019452,3]
[350988460,1738267866638,-1459.1,0.00019452,3]
[350988461,1738267866648,-1072.18205187,0.00019452,3]
[350988462,1738267866661,-7590.86794813,0.00019452,3]
[350988463,1738267866671,-5446.53,0.00019452,3]
[350988464,1738267866682,-1744.44,0.00019452,3]
[350988465,1738267866692,-2389.73,0.00019452,3]
[350988466,1738267866702,-500.0,0.00019452,3]
[350988467,1738267866713,-1613.09,0.00019452,2]
[350988468,1738267866723,-500.0,0.00019452,3]
[350988469,1738267866732,-500.0,0.00019452,3]
[350988470,1738267866747,-589.31,0.00019452,3]
[350988471,1738267866757,-2026.89,0.00019452,3]
[350988472,1738267866767,-3103.7,0.00019452,3]
[350988473,1738267866777,-805.73,0.00019452,3]
[350988474,1738267866787,-503.21349293,0.00019452,3]
[350988475,1738267866796,-151.0,0.00019452,2]
[350988476,1738267866806,-151.0,0.00019452,2]
[350988477,1738267866817,-500.0,0.00019452,3]
[350988478,1738267866827,-811.11,0.00019452,3]
[350988479,1738267866836,-500.0,0.00019452,3]
[350988480,1738267866846,-151.0,0.00019452,2]
[350988481,1738267866856,-264.118006,0.00019452,2]
[350988482,1738267866866,-500.0,0.00019452,3]
[350988483,1738267866875,-500.0,0.00019452,3]
[350988484,1738267866886,-1291.83,0.00019452,3]
[350988485,1738267866896,-5599.02,0.00019452,3]
[350988486,1738267866905,-3421.98,0.00019452,3]
[350988487,1738267866915,-932.67,0.00019452,3]
[350988488,1738267866925,-3773.52,0.00019452,3]
[350988489,1738267866935,-755.54,0.00019452,3]
[350988490,1738267867139,-955.85,0.00019452,3]
[350988491,1738267867151,-3444.92,0.00019452,3]
[350988492,1738267867162,-1451.12,0.00019452,3]
[350988493,1738267867172,-1525.08,0.00019452,3]
[350988494,1738267867182,-781.95,0.00019452,3]
[350988495,1738267867192,-500.0,0.00019452,3]
[350988496,1738267867202,-2236.36,0.00019452,3]
[350988497,1738267867212,-976.82,0.00019452,3]
[350988498,1738267867221,-151.0,0.00019452,2]
[350988499,1738267867232,-3069.68,0.00019452,3]
[350988500,1738267867242,-151.0,0.00019452,2]
[350988501,1738267867252,-500.0,0.00019452,3]
[350988502,1738267867261,-1076.32,0.00019452,3]
[350988503,1738267867271,-500.0,0.00019452,3]
[350988504,1738267867281,-3827.98,0.00019452,3]
[350988505,1738267867292,-1100.06,0.00019452,3]
[350988506,1738267867302,-500.0,0.00019452,3]
[350988507,1738267867312,-1923.15,0.00019452,3]
[350988508,1738267867322,-3014.3,0.00019452,3]
[350988509,1738267867332,-1026.66,0.00019452,3]
[350988510,1738267867342,-346.4156453,0.00019452,3]
[350988511,1738267867352,-628.39,0.00019452,3]
[350988512,1738267867362,-500.0,0.00019452,3]
[350988513,1738267867372,-500.0,0.00019452,3]
[350988514,1738267867382,-323.1431299,0.00019452,3]
[350988515,1738267867392,-500.0,0.00019452,3]
[350988516,1738267867402,-500.0,0.00019452,3]
[350988517,1738267867413,-500.0,0.00019452,3]
[350988518,1738267867423,-4309.19,0.00019452,3]
[350988519,1738267867433,-4510.07,0.00019452,3]
[350988520,1738267867443,-500.0,0.00019452,3]
[350988521,1738267867453,-476.21378141,0.00019452,3]
[350988522,1738267867463,-65.71315841,0.00019452,3]
[350988523,1738267867477,-824.49684159,0.00019452,3]
[350988524,1738267867486,-500.0,0.00019452,3]
[350988525,1738267867496,-5659.85,0.00019452,3]
[350988526,1738267867506,-3615.81,0.00019452,3]
[350988527,1738267867515,-500.0,0.00019452,3]
[350988528,1738267867525,-586.67,0.00019452,3]
[350988529,1738267867535,-500.0,0.00019452,3]
[350988530,1738267867546,-500.0,0.00019452,3]
[350988531,1738267867556,-754.79,0.00019452,3]
[350988532,1738267867566,-3180.72,0.00019452,3]
[350988533,1738267867576,-4345.76,0.00019452,3]
[350988534,1738267867586,-500.0,0.00019452,3]
[350988535,1738267867595,-500.0,0.00019452,3]
[350988536,1738267867605,-500.0,0.00019452,3]
[350988537,1738267867616,-1244.6,0.00019452,3]
[350988538,1738267867625,-3236.74,0.00019452,3]
[350988539,1738267867635,-500.0,0.00019452,3]
[350988540,1738267867645,-500.0,0.00019452,3]
[350988541,1738267867655,-593.36,0.00019452,3]
[350988542,1738267867665,-2919.61,0.00019452,3]
[350988543,1738267867674,-500.0,0.00019452,3]
[350988544,1738267867684,-500.0,0.00019452,3]
[350988545,1738267867694,-1352.78,0.00019452,3]
[350988546,1738267867703,-1058.46,0.00019452,3]
[350988547,1738267867712,-500.0,0.00019452,3]
[350988548,1738267867721,-800.83137096,0.00019452,3]
[350988549,1738267867734,-883.67862904,0.00019452,3]
[350988550,1738267867748,-500.0,0.00019452,3]
[350988551,1738267867758,-4025.36,0.00019452,3]
[350988552,1738267867767,-3446.7,0.00019452,3]
[350988553,1738267867777,-2000.33,0.00019452,3]
[350988554,1738267867788,-500.0,0.00019452,3]
[350988555,1738267867798,-500.0,0.00019452,3]
[350988556,1738267867808,-2329.23203096,0.00019452,3]
[350988557,1738267867822,-655.56796904,0.00019452,3]
[350988558,1738267867832,-426.92,0.00019452,3]
[350988559,1738267867842,-2022.47141096,0.00019452,3]
[350988560,1738267867854,-3482.63858904,0.00019452,3]
[350988561,1738267867864,-987.65,0.00019452,3]
[350988562,1738267867874,-969.05,0.00019452,3]
[350988563,1738267867884,-500.0,0.00019452,3]
[350988564,1738267867895,-5570.79,0.00019452,3]
[350988565,1738267867904,-151.0,0.00019452,2]
[350988566,1738267867915,-151.0,0.00019452,2]
[350988567,1738267867925,-500.0,0.00019452,3]
[350988568,1738267867936,-8756.31,0.00019452,3]
[350988569,1738267867946,-3948.99,0.00019452,3]
[350988570,1738267867955,-500.0,0.00019452,3]
[350988571,1738267867965,-500.0,0.00019452,3]
[350988572,1738267867974,-500.0,0.00019452,3]
[350988573,1738267867984,-2961.39,0.00019452,3]
[350988574,1738267867994,-4011.89,0.00019452,3]
[350988575,1738267868004,-500.0,0.00019452,3]
[350988576,1738267868014,-1059.51,0.00019452,3]
[350988577,1738267868025,-151.0,0.00019452,2]
[350988578,1738267868035,-151.0,0.00019452,2]
[350988579,1738267868046,-500.0,0.00019452,3]
[350988580,1738267868056,-998.94,0.00019452,3]
[350988581,1738267868066,-22143.06,0.00019452,3]
[350988582,1738267868076,-1284.2,0.00019452,3]
[350988583,1738267868086,-2367.76,0.00019452,3]
[350988584,1738267868096,-500.0,0.00019452,3]
[350988585,1738267868106,-892.73,0.00019452,3]
[350988586,1738267868120,-1957.09,0.00019452,3]
[350988587,1738267868130,-500.0,0.00019452,3]
[350988588,1738267868139,-1115.81,0.00019452,3]
[350988589,1738267868150,-6406.14,0.00019452,3]
[350988590,1738267868159,-1922.35,0.00019452,3]
[350988591,1738267868169,-1173.58,0.00019452,3]
[350988592,1738267868178,-500.0,0.00019452,3]
[350988593,1738267868188,-500.0,0.00019452,3]
[350988594,1738267868197,-512.22,0.00019452,3]
[350988595,1738267868207,-500.0,0.00019452,3]
[350988596,1738267868216,-1412.13,0.00019452,3]
[350988597,1738267868225,-2567.64,0.00019452,3]
[350988598,1738267868235,-2320.57,0.00019452,3]
[350988599,1738267868245,-6682.87,0.00019452,3]
[350988600,1738267868254,-798.27,0.00019452,3]
[350988601,1738267868264,-500.0,0.00019452,3]
[350988602,1738267868273,-916.42,0.00019452,3]
[350988603,1738267868283,-500.0,0.00019452,3]
[350988604,1738267868292,-2840.49,0.00019452,3]
[350988605,1738267868302,-10955.32429871,0.00019452,3]
[350988606,1738267868314,-415.1,0.00019452,3]
[350988607,1738267868325,-1173.19570129,0.00019452,3]
[350988608,1738267868334,-500.0,0.00019452,3]
[350988609,1738267868345,-500.0,0.00019452,3]
[350988610,1738267868355,-896.54,0.00019452,3]
[350988611,1738267868364,-1144.74,0.00019452,3]
[350988612,1738267868373,-646.83884871,0.00019452,3]
[350988613,1738267868389,-241.26115129,0.00019452,3]
[350988614,1738267868400,-261.68626314,0.00019452,3]
[350988615,1738267868411,-396.69360933,0.00019452,3]
[350988616,1738267868422,-431.51590947,0.00019452,3]
[350988617,1738267868658,-98.11421806,0.00019452,3]
[350988618,1738267868668,-649.05642803,0.00019452,3]
[350988619,1738267868680,-685.18,0.00019452,3]
[350988620,1738267868691,-315.45669997,0.00019452,3]
[350988621,1738267868703,-4089.856872,0.00019452,3]
[350988622,1738267868713,-525.3064839,0.00019452,3]
[350988623,1738267868723,-553.62,0.00019452,3]
[350988624,1738267868733,-500.0,0.00019452,3]
[350988625,1738267868747,-500.0,0.00019452,3]
[350988626,1738267868756,-500.0,0.00019452,3]
[350988627,1738267868766,-643.15556654,0.00019452,3]
[350988628,1738267868775,-796.18,0.00019452,3]
[350988629,1738267868787,-1205.06,0.00019452,3]
[350988630,1738267868796,-1803.29,0.00019452,3]
[350988631,1738267868805,-500.0,0.00019452,3]
[350988632,1738267868815,-3390.33,0.00019452,3]
[350988633,1738267868826,-3044.02,0.00019452,3]
[350988634,1738267868836,-1705.3,0.00019452,3]
[350988635,1738267868846,-544.68,0.00019452,3]
[350988636,1738267868855,-1625.7,0.00019452,3]
[350988637,1738267868864,-500.0,0.00019452,3]
[350988638,1738267868874,-3138.14,0.00019452,3]
[350988639,1738267868883,-500.0,0.00019452,3]
[350988640,1738267868893,-1647.49,0.00019452,3]
[350988641,1738267868902,-500.0,0.00019452,3]
[350988642,1738267868911,-500.0,0.00019452,3]
[350988643,1738267868921,-500.0,0.00019452,3]
[350988644,1738267868930,-1872.19,0.00019452,3]
[350988645,1738267868939,-578.07903527,0.00019452,3]
[350988646,1738267868950,-686.5,0.00019452,3]
[350988647,1738267868959,-500.0,0.00019452,3]
[350988648,1738267868968,-792.24,0.00019452,3]
[350988649,1738267868978,-4499.43,0.00019452,3]
[350988650,1738267868987,-629.35,0.00019452,3]
[350988651,1738267868996,-1758.93,0.00019452,3]
[350988652,1738267869006,-834.89,0.00019452,3]
[350988653,1738267869015,-151.0,0.00019452,2]
[350988654,1738267869024,-1160.2,0.00019452,3]
[350988655,1738267869034,-151.124222,0.00019452,2]
[350988656,1738267869043,-500.0,0.00019452,3]
[350988657,1738267869052,-370.405461,0.00019452,2]
[350988658,1738267869061,-370.405461,0.00019452,2]
[350988659,1738267869071,-636.05,0.00019452,3]
[350988660,1738267869080,-151.0,0.00019452,2]
[350988661,1738267869090,-151.0,0.00019452,2]
[350988662,1738267869099,-503.57559619,0.00019452,3]
[350988663,1738267869109,-500.32,0.00019452,3]
[350988664,1738267869118,-500.0,0.00019452,3]
[350988665,1738267869127,-1638.08,0.00019452,3]
[350988666,1738267869137,-370.405461,0.00019452,2]
[350988667,1738267869146,-4872.69,0.00019452,3]
[350988668,1738267869156,-297.444895,0.00019452,2]
[350988669,1738267869165,-297.444895,0.00019452,2]
[350988670,1738267869175,-2586.31,0.00019452,3]
[350988671,1738267869184,-1115.93,0.00019452,3]
[350988672,1738267869193,-1711.5,0.00019452,3]
[350988673,1738267869203,-500.0,0.00019452,3]
[350988674,1738267869212,-370.405461,0.00019452,2]
[350988675,1738267869222,-297.444895,0.00019452,2]
[350988676,1738267869231,-297.444895,0.00019452,2]
[350988677,1738267869241,-500.0,0.00019452,3]
[350988678,1738267869250,-500.0,0.00019452,3]
[350988679,1738267869260,-863.96,0.00019452,3]
[350988680,1738267869269,-750.67,0.00019452,3]
[350988681,1738267869278,-1783.39,0.00019452,3]
[350988682,1738267869288,-500.0,0.00019452,3]
[350988683,1738267869297,-591.52,0.00019452,3]
[350988684,1738267869307,-923.71,0.00019452,3]
[350988685,1738267869317,-500.0,0.00019452,3]
[350988686,1738267869327,-373.57142987,0.00019452,3]
[350988687,1738267869339,-744.12,0.00019452,3]
[350988688,1738267869349,-500.0,0.00019452,3]
[350988689,1738267869359,-1979.47,0.00019452,3]
[350988690,1738267869371,-500.0,0.00019452,3]
[350988691,1738267869381,-500.0,0.00019452,3]
[350988692,1738267869390,-4038.58,0.00019452,3]
[350988693,1738267869401,-3829.95,0.00019452,3]
[350988694,1738267869411,-781.73,0.00019452,3]
[350988695,1738267869420,-500.0,0.00019452,3]
[350988696,1738267869430,-754.57,0.00019452,3]
[350988697,1738267869441,-500.0,0.00019452,3]
[350988698,1738267869452,-1522.82,0.00019452,3]
[350988699,1738267869462,-500.0,0.00019452,3]
[350988700,1738267869471,-423.92331557,0.00019452,3]
[350988701,1738267869482,-832.04,0.00019452,3]
[350988702,1738267869492,-500.0,0.00019452,3]
[350988703,1738267869502,-500.0,0.00019452,3]
[350988704,1738267869511,-500.0,0.00019452,3]
[350988705,1738267869521,-500.0,0.00019452,3]
[350988706,1738267869530,-554.05,0.00019452,3]
[350988707,1738267869540,-2239.45,0.00019452,3]
[350988708,1738267869549,-500.0,0.00019452,3]
[350988709,1738267869558,-500.0,0.00019452,3]